[Event "Titled Tuesday Blitz November 29 Late 2022"]
[White "Milosevic, Milos"]
[Black "Nugumanov, Bakhtiyar"]
[WhiteFideId "964875"]
[BlackFideId "13701797"]
[WhiteElo "2321"]
[BlackElo "2287"]
[Result "0-1"]
[Round "02"]
[TimeControl "180+1"]
[Date "2022.11.30"]
[WhiteClock "0:00:07"]
[BlackClock "0:00:07"]

1. e4 {[%clk 0:03:00]}  c6 {[%clk 0:02:58]} 2. d4 {[%clk 0:03:00]}  d5 {[%clk 0:02:59]} 3. Nc3 {[%clk 0:03:00]}  dxe4 {[%clk 0:02:59]} 4. Nxe4 {[%clk 0:03:01]}  Bf5 {[%clk 0:02:59]} 5. Ng3 {[%clk 0:03:01]}  Bg6 {[%clk 0:03:00]} 6. N1e2 {[%clk 0:03:02]}  Nf6 {[%clk 0:02:58]} 7. h4 {[%clk 0:03:01]}  h6 {[%clk 0:02:57]} 8. Nf4 {[%clk 0:02:59]}  Bh7 {[%clk 0:02:58]} 9. c3 {[%clk 0:03:00]}  Nbd7 {[%clk 0:02:55]} 10. Bd3 {[%clk 0:03:00]}  Bxd3 {[%clk 0:02:54]} 11. Nxd3 {[%clk 0:03:01]}  e6 {[%clk 0:02:51]} 12. Nh5 {[%clk 0:02:58]}  Nxh5 {[%clk 0:02:33]} 13. Qxh5 {[%clk 0:02:59]}  Nf6 {[%clk 0:02:34]} 14. Qe2 {[%clk 0:02:58]}  Bd6 {[%clk 0:02:34]} 15. Be3 {[%clk 0:02:55]}  Qc7 {[%clk 0:02:22]} 16. O-O-O {[%clk 0:02:54]}  O-O-O {[%clk 0:02:22]} 17. Kb1 {[%clk 0:02:55]}  Kb8 {[%clk 0:02:22]} 18. c4 {[%clk 0:02:55]}  Rhe8 {[%clk 0:02:17]} 19. Rhe1 {[%clk 0:02:39]}  Ka8 {[%clk 0:02:02]} 20. Qc2 {[%clk 0:02:20]}  Ng4 {[%clk 0:01:42]} 21. Bd2 {[%clk 0:01:36]}  Be7 {[%clk 0:00:32]} 22. f3 {[%clk 0:01:11]}  Nf6 {[%clk 0:00:17]} 23. Bc3 {[%clk 0:00:59]}  Bd6 {[%clk 0:00:15]} 24. Qa4 {[%clk 0:00:55]}  Bg3 {[%clk 0:00:15]} 25. Re2 {[%clk 0:00:47]}  Bxh4 {[%clk 0:00:14]} 26. f4 {[%clk 0:00:32]}  Bg3 {[%clk 0:00:13]} 27. Rf1 {[%clk 0:00:28]}  Nh5 {[%clk 0:00:13]} 28. Re5 {[%clk 0:00:24]}  Nf6 {[%clk 0:00:07]} 29. Rf3 {[%clk 0:00:24]}  Bh4 {[%clk 0:00:07]} 30. g3 {[%clk 0:00:24]}  Ng4 {[%clk 0:00:06]} 31. gxh4 {[%clk 0:00:24]}  Nxe5 {[%clk 0:00:06]} 32. fxe5 {[%clk 0:00:25]}  Qe7 {[%clk 0:00:06]} 33. h5 {[%clk 0:00:20]}  f5 {[%clk 0:00:05]} 34. Bb4 {[%clk 0:00:19]}  Qh4 {[%clk 0:00:05]} 35. Bd6 {[%clk 0:00:18]}  Qxd4 {[%clk 0:00:04]} 36. Qc2 {[%clk 0:00:16]}  Rxd6 {[%clk 0:00:04]} 37. exd6 {[%clk 0:00:16]}  Qxd6 {[%clk 0:00:05]} 38. c5 {[%clk 0:00:16]}  Qd4 {[%clk 0:00:04]} 39. Rf4 {[%clk 0:00:16]}  Qd5 {[%clk 0:00:04]} 40. a3 {[%clk 0:00:16]}  Qh1+ {[%clk 0:00:04]} 41. Ka2 {[%clk 0:00:15]}  Qd5+ {[%clk 0:00:05]} 42. b3 {[%clk 0:00:15]}  Qd7 {[%clk 0:00:04]} 43. Nb4 {[%clk 0:00:15]}  e5 {[%clk 0:00:04]} 44. Rxf5 {[%clk 0:00:15]}  e4 {[%clk 0:00:04]} 45. Rf1 {[%clk 0:00:12]}  e3 {[%clk 0:00:04]} 46. Re1 {[%clk 0:00:13]}  Qh3 {[%clk 0:00:03]} 47. Re2 {[%clk 0:00:12]}  Qxh5 {[%clk 0:00:04]} 48. Qd3 {[%clk 0:00:13]}  Qg5 {[%clk 0:00:04]} 49. Nc2 {[%clk 0:00:12]}  h5 {[%clk 0:00:04]} 50. Rxe3 {[%clk 0:00:13]}  Rxe3 {[%clk 0:00:04]} 51. Nxe3 {[%clk 0:00:13]}  h4 {[%clk 0:00:04]} 52. Qe4 {[%clk 0:00:12]}  a6 {[%clk 0:00:04]} 53. a4 {[%clk 0:00:12]}  Qxc5 {[%clk 0:00:04]} 54. Nc4 {[%clk 0:00:10]}  g5 {[%clk 0:00:04]} 55. a5 {[%clk 0:00:10]}  Ka7 {[%clk 0:00:04]} 56. Qg4 {[%clk 0:00:07]}  Qf2+ {[%clk 0:00:04]} 57. Ka3 {[%clk 0:00:07]}  Qc5+ {[%clk 0:00:04]} 58. Kb2 {[%clk 0:00:07]}  Qf2+ {[%clk 0:00:04]} 59. Kc3 {[%clk 0:00:07]}  Qc5 {[%clk 0:00:02]} 60. b4 {[%clk 0:00:07]}  Qg1 {[%clk 0:00:02]} 61. Nd6 {[%clk 0:00:03]}  Qxg4 {[%clk 0:00:02]} 62. Nc8+ {[%clk 0:00:03]}  Kb8 {[%clk 0:00:02]} 63. Nb6 {[%clk 0:00:03]}  Qg3+ {[%clk 0:00:03]} 64. Kc4 {[%clk 0:00:04]}  h3 {[%clk 0:00:04]} 65. Kc5 {[%clk 0:00:04]}  Kc7 {[%clk 0:00:05]} 66. Nd5+ {[%clk 0:00:04]}  cxd5 {[%clk 0:00:05]} 67. Kxd5 {[%clk 0:00:05]}  h2 {[%clk 0:00:06]} 68. Ke6 {[%clk 0:00:06]}  h1=Q {[%clk 0:00:07]} 69. Kf7 {[%clk 0:00:07]}  Qhf3+ {[%clk 0:00:07]} 70. Kg7 {[%clk 0:00:07]}  Qe5+ {[%clk 0:00:07]} 0-1


[Site "https://www.chess.com"]

[Event "Titled Tuesday Blitz November 29 Late 2022"]
[White "Moroni, Luca Jr"]
[Black "Richter, Paul"]
[WhiteFideId "865834"]
[BlackFideId "2046350"]
[WhiteElo "2573"]
[BlackElo "2545"]
[Result "0-1"]
[Round "02"]
[TimeControl "180+1"]
[Date "2022.11.30"]
[WhiteClock "0:00:09"]
[BlackClock "0:00:11"]

1. d4 {[%clk 0:03:00]}  Nf6 {[%clk 0:02:57]} 2. Bf4 {[%clk 0:03:01]}  g6 {[%clk 0:02:57]} 3. Nc3 {[%clk 0:03:00]}  Bg7 {[%clk 0:02:58]} 4. e4 {[%clk 0:03:00]}  d6 {[%clk 0:02:58]} 5. Qd2 {[%clk 0:03:00]}  h5 {[%clk 0:02:59]} 6. f3 {[%clk 0:03:00]}  O-O {[%clk 0:02:49]} 7. O-O-O {[%clk 0:02:58]}  Nc6 {[%clk 0:02:45]} 8. Bh6 {[%clk 0:02:57]}  e5 {[%clk 0:02:40]} 9. Bxg7 {[%clk 0:02:55]}  Kxg7 {[%clk 0:02:40]} 10. dxe5 {[%clk 0:02:51]}  dxe5 {[%clk 0:02:39]} 11. Nd5 {[%clk 0:02:48]}  Nd4 {[%clk 0:02:07]} 12. c3 {[%clk 0:02:44]}  Ne6 {[%clk 0:02:03]} 13. Bc4 {[%clk 0:02:33]}  c6 {[%clk 0:02:01]} 14. Nxf6 {[%clk 0:02:30]}  Qxf6 {[%clk 0:02:02]} 15. Ne2 {[%clk 0:02:29]}  b5 {[%clk 0:01:57]} 16. Bb3 {[%clk 0:02:24]}  Rd8 {[%clk 0:01:45]} 17. Qe3 {[%clk 0:02:22]}  a5 {[%clk 0:01:30]} 18. Rxd8 {[%clk 0:02:20]}  Qxd8 {[%clk 0:01:31]} 19. Rd1 {[%clk 0:02:19]}  Qc7 {[%clk 0:01:20]} 20. a3 {[%clk 0:02:15]}  b4 {[%clk 0:01:11]} 21. a4 {[%clk 0:01:46]}  c5 {[%clk 0:00:55]} 22. Bd5 {[%clk 0:01:41]}  Rb8 {[%clk 0:00:54]} 23. g3 {[%clk 0:01:22]}  bxc3 {[%clk 0:00:51]} 24. bxc3 {[%clk 0:01:19]}  Bd7 {[%clk 0:00:46]} 25. Kd2 {[%clk 0:01:07]}  Rb2+ {[%clk 0:00:39]} 26. Ke1 {[%clk 0:01:07]}  Bxa4 {[%clk 0:00:36]} 27. Ra1 {[%clk 0:01:06]}  Bb5 {[%clk 0:00:34]} 28. c4 {[%clk 0:01:06]}  Bd7 {[%clk 0:00:30]} 29. Qc3 {[%clk 0:01:01]}  Rb4 {[%clk 0:00:26]} 30. Nc1 {[%clk 0:00:46]}  Nd4 {[%clk 0:00:24]} 31. f4 {[%clk 0:00:46]}  exf4 {[%clk 0:00:20]} 32. Kf2 {[%clk 0:00:21]}  fxg3+ {[%clk 0:00:19]} 33. hxg3 {[%clk 0:00:22]}  a4 {[%clk 0:00:19]} 34. Kg2 {[%clk 0:00:19]}  Qb8 {[%clk 0:00:17]} 35. Nd3 {[%clk 0:00:13]}  Rb3 {[%clk 0:00:17]} 36. Qd2 {[%clk 0:00:14]}  a3 {[%clk 0:00:15]} 37. Rf1 {[%clk 0:00:14]}  Be8 {[%clk 0:00:13]} 38. Kh3 {[%clk 0:00:11]}  a2 {[%clk 0:00:12]} 39. Nxc5 {[%clk 0:00:09]}  Qxg3# {[%clk 0:00:11]} 0-1


[Site "https://www.chess.com"]

[Event "Titled Tuesday Blitz November 29 Late 2022"]
[White "Naroditsky, Daniel"]
[Black "Suder, Jakub"]
[WhiteFideId "2026961"]
[BlackFideId "1195310"]
[WhiteElo "3138"]
[BlackElo "2674"]
[Result "1-0"]
[Round "02"]
[TimeControl "180+1"]
[Date "2022.11.30"]
[WhiteClock "0:00:30"]
[BlackClock "0:00:09"]

1. e4 {[%clk 0:03:00]}  c5 {[%clk 0:02:49]} 2. Nf3 {[%clk 0:02:57]}  e6 {[%clk 0:02:49]} 3. d4 {[%clk 0:02:46]}  cxd4 {[%clk 0:02:48]} 4. Nxd4 {[%clk 0:02:47]}  Nc6 {[%clk 0:02:48]} 5. Nc3 {[%clk 0:02:45]}  Nf6 {[%clk 0:02:48]} 6. g3 {[%clk 0:02:39]}  Qb6 {[%clk 0:02:47]} 7. Nb3 {[%clk 0:02:35]}  Bb4 {[%clk 0:02:41]} 8. Bg2 {[%clk 0:02:35]}  Qa6 {[%clk 0:02:41]} 9. Bd2 {[%clk 0:02:27]}  O-O {[%clk 0:02:32]} 10. a3 {[%clk 0:02:27]}  Be7 {[%clk 0:02:32]} 11. Qe2 {[%clk 0:01:44]}  Qxe2+ {[%clk 0:02:27]} 12. Kxe2 {[%clk 0:01:45]}  d6 {[%clk 0:02:23]} 13. Rad1 {[%clk 0:01:38]}  e5 {[%clk 0:02:04]} 14. Rhe1 {[%clk 0:01:35]}  Be6 {[%clk 0:02:01]} 15. Kf1 {[%clk 0:01:34]}  Bxb3 {[%clk 0:01:52]} 16. cxb3 {[%clk 0:01:34]}  Nd4 {[%clk 0:01:53]} 17. b4 {[%clk 0:01:18]}  Bd8 {[%clk 0:01:41]} 18. h3 {[%clk 0:01:11]}  Bb6 {[%clk 0:01:31]} 19. Bg5 {[%clk 0:01:11]}  Bd8 {[%clk 0:00:59]} 20. Rd2 {[%clk 0:01:06]}  a6 {[%clk 0:00:52]} 21. Be3 {[%clk 0:01:03]}  Bb6 {[%clk 0:00:45]} 22. Ne2 {[%clk 0:01:04]}  Rac8 {[%clk 0:00:37]} 23. Nxd4 {[%clk 0:01:03]}  exd4 {[%clk 0:00:38]} 24. Bxd4 {[%clk 0:01:04]}  Bxd4 {[%clk 0:00:38]} 25. Rxd4 {[%clk 0:01:05]}  Rc2 {[%clk 0:00:38]} 26. Re2 {[%clk 0:01:03]}  Rc1+ {[%clk 0:00:38]} 27. Re1 {[%clk 0:01:04]}  Rc2 {[%clk 0:00:35]} 28. Rxd6 {[%clk 0:01:04]}  Rxb2 {[%clk 0:00:35]} 29. e5 {[%clk 0:01:05]}  Ne8 {[%clk 0:00:34]} 30. Rd7 {[%clk 0:01:03]}  b5 {[%clk 0:00:35]} 31. Bd5 {[%clk 0:01:03]}  Rc2 {[%clk 0:00:31]} 32. Rd1 {[%clk 0:00:57]}  Nc7 {[%clk 0:00:31]} 33. Bb3 {[%clk 0:00:52]}  Rc3 {[%clk 0:00:30]} 34. R1d3 {[%clk 0:00:51]}  Rxd3 {[%clk 0:00:27]} 35. Rxd3 {[%clk 0:00:51]}  Re8 {[%clk 0:00:24]} 36. Rd7 {[%clk 0:00:47]}  Ne6 {[%clk 0:00:24]} 37. f4 {[%clk 0:00:45]}  Kf8 {[%clk 0:00:24]} 38. Ra7 {[%clk 0:00:38]}  Rc8 {[%clk 0:00:17]} 39. Bd5 {[%clk 0:00:27]}  Rc3 {[%clk 0:00:13]} 40. Kf2 {[%clk 0:00:27]}  Rxa3 {[%clk 0:00:12]} 41. f5 {[%clk 0:00:28]}  Nd8 {[%clk 0:00:12]} 42. e6 {[%clk 0:00:29]}  fxe6 {[%clk 0:00:11]} 43. fxe6 {[%clk 0:00:30]}  Ke8 {[%clk 0:00:09]} 44. e7 {[%clk 0:00:30]} 1-0


[Site "https://www.chess.com"]

[Event "Titled Tuesday Blitz November 29 Late 2022"]
[White "Papasimakopoulos, Alexandros"]
[Black "Seletsky, Grigory"]
[WhiteFideId "4244125"]
[BlackFideId "14112191"]
[WhiteElo "2365"]
[BlackElo "2492"]
[Result "1-0"]
[Round "02"]
[TimeControl "180+1"]
[Date "2022.11.30"]
[WhiteClock "0:00:03"]
[BlackClock "0:00:01"]

1. d4 {[%clk 0:03:00]}  d6 {[%clk 0:02:59]} 2. Nf3 {[%clk 0:03:00]}  Nf6 {[%clk 0:02:58]} 3. c4 {[%clk 0:03:00]}  Bg4 {[%clk 0:02:55]} 4. Qb3 {[%clk 0:02:58]}  Qc8 {[%clk 0:02:53]} 5. h3 {[%clk 0:02:58]}  Bxf3 {[%clk 0:02:52]} 6. Qxf3 {[%clk 0:02:59]}  e6 {[%clk 0:02:52]} 7. Nc3 {[%clk 0:02:58]}  c6 {[%clk 0:02:51]} 8. g4 {[%clk 0:02:56]}  d5 {[%clk 0:02:48]} 9. g5 {[%clk 0:02:53]}  Nfd7 {[%clk 0:02:48]} 10. e4 {[%clk 0:02:54]}  dxe4 {[%clk 0:02:37]} 11. Qxe4 {[%clk 0:02:55]}  Na6 {[%clk 0:02:30]} 12. Bf4 {[%clk 0:02:44]}  Be7 {[%clk 0:02:26]} 13. h4 {[%clk 0:02:36]}  Nc7 {[%clk 0:02:07]} 14. h5 {[%clk 0:02:30]}  Nb6 {[%clk 0:02:05]} 15. O-O-O {[%clk 0:02:16]}  Qd7 {[%clk 0:02:02]} 16. g6 {[%clk 0:02:12]}  f5 {[%clk 0:02:00]} 17. Qe5 {[%clk 0:02:08]}  O-O-O {[%clk 0:01:55]} 18. gxh7 {[%clk 0:01:45]}  Bf6 {[%clk 0:01:54]} 19. Qa5 {[%clk 0:01:23]}  Kb8 {[%clk 0:01:52]} 20. c5 {[%clk 0:01:19]}  Nd5 {[%clk 0:01:50]} 21. Nxd5 {[%clk 0:01:19]}  exd5 {[%clk 0:01:44]} 22. Bd3 {[%clk 0:01:19]}  Rc8 {[%clk 0:01:43]} 23. Rh3 {[%clk 0:01:02]}  Rxh7 {[%clk 0:01:39]} 24. Bc2 {[%clk 0:01:02]}  Ka8 {[%clk 0:01:31]} 25. Ra3 {[%clk 0:01:01]}  a6 {[%clk 0:01:24]} 26. Bd3 {[%clk 0:00:40]}  Rxh5 {[%clk 0:01:21]} 27. Qb6 {[%clk 0:00:20]}  Rhh8 {[%clk 0:01:14]} 28. Bf1 {[%clk 0:00:19]}  g5 {[%clk 0:01:09]} 29. Bd6 {[%clk 0:00:19]}  Nb5 {[%clk 0:00:42]} 30. Bxb5 {[%clk 0:00:16]}  cxb5 {[%clk 0:00:42]} 31. Qa5 {[%clk 0:00:12]}  Qxd6 {[%clk 0:00:39]} 32. Qxb5 {[%clk 0:00:12]}  Kb8 {[%clk 0:00:36]} 33. Qb4 {[%clk 0:00:10]}  Rh4 {[%clk 0:00:23]} 34. Kb1 {[%clk 0:00:09]}  Qc6 {[%clk 0:00:19]} 35. Rb3 {[%clk 0:00:08]}  Re8 {[%clk 0:00:15]} 36. a3 {[%clk 0:00:08]}  Ka8 {[%clk 0:00:14]} 37. Rf3 {[%clk 0:00:07]}  Rf4 {[%clk 0:00:12]} 38. Rh3 {[%clk 0:00:06]}  Rf3 {[%clk 0:00:11]} 39. Rxf3 {[%clk 0:00:06]}  f4 {[%clk 0:00:10]} 40. Rb3 {[%clk 0:00:06]}  g4 {[%clk 0:00:09]} 41. Rg1 {[%clk 0:00:06]}  Qd7 {[%clk 0:00:07]} 42. Ka2 {[%clk 0:00:04]}  Re4 {[%clk 0:00:03]} 43. Rxg4 {[%clk 0:00:02]}  Rxd4 {[%clk 0:00:02]} 44. Rg8+ {[%clk 0:00:03]}  Bd8 {[%clk 0:00:01]} 45. Rxd8+ {[%clk 0:00:03]} 1-0


[Site "https://www.chess.com"]

[Event "Titled Tuesday Blitz November 29 Late 2022"]
[White "Pein, Jonathan"]
[Black "Chirilov, James A"]
[WhiteFideId "417092"]
[BlackFideId "30976677"]
[WhiteElo "2227"]
[BlackElo "1790"]
[Result "1-0"]
[Round "02"]
[TimeControl "180+1"]
[Date "2022.11.30"]
[WhiteClock "0:00:20"]
[BlackClock "0:00:04"]

1. c4 {[%clk 0:03:00]}  Nf6 {[%clk 0:02:59]} 2. Nc3 {[%clk 0:03:00]}  g6 {[%clk 0:02:58]} 3. g3 {[%clk 0:03:00]}  Bg7 {[%clk 0:02:58]} 4. Bg2 {[%clk 0:03:01]}  O-O {[%clk 0:02:59]} 5. e4 {[%clk 0:03:01]}  d6 {[%clk 0:02:59]} 6. Nge2 {[%clk 0:03:02]}  e5 {[%clk 0:02:59]} 7. O-O {[%clk 0:03:00]}  Nc6 {[%clk 0:02:57]} 8. d3 {[%clk 0:03:00]}  Re8 {[%clk 0:02:55]} 9. h3 {[%clk 0:03:00]}  a6 {[%clk 0:02:52]} 10. Be3 {[%clk 0:03:00]}  Rb8 {[%clk 0:02:52]} 11. a4 {[%clk 0:02:58]}  Bd7 {[%clk 0:02:51]} 12. Qd2 {[%clk 0:02:56]}  Na5 {[%clk 0:02:37]} 13. Nc1 {[%clk 0:02:51]}  c5 {[%clk 0:02:35]} 14. Nd5 {[%clk 0:02:47]}  Nc6 {[%clk 0:02:32]} 15. Bg5 {[%clk 0:02:42]}  Be6 {[%clk 0:02:25]} 16. Ne2 {[%clk 0:02:33]}  Bxd5 {[%clk 0:02:19]} 17. cxd5 {[%clk 0:02:25]}  Nd4 {[%clk 0:02:12]} 18. Nxd4 {[%clk 0:02:25]}  cxd4 {[%clk 0:02:12]} 19. f4 {[%clk 0:02:20]}  h6 {[%clk 0:02:12]} 20. fxe5 {[%clk 0:02:13]}  hxg5 {[%clk 0:02:07]} 21. exf6 {[%clk 0:02:13]}  Bxf6 {[%clk 0:02:08]} 22. Qf2 {[%clk 0:02:14]}  Kg7 {[%clk 0:02:05]} 23. Rac1 {[%clk 0:02:11]}  Qe7 {[%clk 0:02:00]} 24. Bf3 {[%clk 0:01:57]}  Be5 {[%clk 0:02:00]} 25. Bg4 {[%clk 0:01:56]}  b5 {[%clk 0:01:43]} 26. a5 {[%clk 0:01:54]}  Rb7 {[%clk 0:01:28]} 27. Rc6 {[%clk 0:01:52]}  Ra8 {[%clk 0:01:19]} 28. b4 {[%clk 0:01:43]}  Rc7 {[%clk 0:01:15]} 29. Rfc1 {[%clk 0:01:31]}  Raa7 {[%clk 0:01:14]} 30. Kg2 {[%clk 0:01:27]}  Rxc6 {[%clk 0:00:52]} 31. Rxc6 {[%clk 0:01:28]}  Qd8 {[%clk 0:00:31]} 32. Rc8 {[%clk 0:01:19]}  Qe7 {[%clk 0:00:29]} 33. Qc2 {[%clk 0:01:15]}  Bf6 {[%clk 0:00:21]} 34. Qc6 {[%clk 0:01:13]}  Be5 {[%clk 0:00:14]} 35. Qb6 {[%clk 0:00:55]}  Bf6 {[%clk 0:00:03]} 36. Qb8 {[%clk 0:00:55]}  Be5 {[%clk 0:00:02]} 37. Re8 {[%clk 0:00:48]}  Qc7 {[%clk 0:00:01]} 38. Rg8+ {[%clk 0:00:47]}  Kh7 {[%clk 0:00:02]} 39. Qc8 {[%clk 0:00:33]}  Qxc8 {[%clk 0:00:02]} 40. Rxc8 {[%clk 0:00:34]}  Kg7 {[%clk 0:00:02]} 41. Kf3 {[%clk 0:00:31]}  Kf6 {[%clk 0:00:02]} 42. Rc6 {[%clk 0:00:30]}  Ke7 {[%clk 0:00:03]} 43. Bc8 {[%clk 0:00:30]}  f5 {[%clk 0:00:03]} 44. exf5 {[%clk 0:00:26]}  gxf5 {[%clk 0:00:04]} 45. Bxf5 {[%clk 0:00:27]}  Kd8 {[%clk 0:00:02]} 46. Bc8 {[%clk 0:00:25]}  Rf7+ {[%clk 0:00:03]} 47. Kg2 {[%clk 0:00:23]}  Rc7 {[%clk 0:00:01]} 48. Bxa6 {[%clk 0:00:20]}  Ra7 {[%clk 0:00:01]} 49. Bxb5 {[%clk 0:00:20]}  Rh7 {[%clk 0:00:02]} 50. a6 {[%clk 0:00:19]}  g4 {[%clk 0:00:02]} 51. hxg4 {[%clk 0:00:19]}  Rg7 {[%clk 0:00:03]} 52. Kf3 {[%clk 0:00:19]}  Rf7+ {[%clk 0:00:03]} 53. Kg2 {[%clk 0:00:20]}  Rg7 {[%clk 0:00:04]} 54. Rb6 {[%clk 0:00:19]}  Rxg4 {[%clk 0:00:04]} 55. a7 {[%clk 0:00:19]}  Rxg3+ {[%clk 0:00:04]} 56. Kf2 {[%clk 0:00:20]} 1-0


[Site "https://www.chess.com"]

[Event "Titled Tuesday Blitz November 29 Late 2022"]
[White "Perez Rodriguez, Jennifer"]
[Black "Winkels, Marcel"]
[WhiteFideId "3507831"]
[BlackFideId "1003887"]
[WhiteElo "2170"]
[BlackElo "1900"]
[Result "1-0"]
[Round "02"]
[TimeControl "180+1"]
[Date "2022.11.30"]
[WhiteClock "0:01:22"]
[BlackClock "0:00:30"]

1. e4 {[%clk 0:03:00]}  c5 {[%clk 0:02:58]} 2. c3 {[%clk 0:03:00]}  d5 {[%clk 0:02:57]} 3. exd5 {[%clk 0:03:01]}  Qxd5 {[%clk 0:02:57]} 4. d4 {[%clk 0:03:01]}  g6 {[%clk 0:02:57]} 5. Nf3 {[%clk 0:03:01]}  Bg7 {[%clk 0:02:56]} 6. Be3 {[%clk 0:02:55]}  cxd4 {[%clk 0:02:54]} 7. cxd4 {[%clk 0:02:51]}  Nf6 {[%clk 0:02:55]} 8. Nc3 {[%clk 0:02:51]}  Qd8 {[%clk 0:02:54]} 9. Bc4 {[%clk 0:02:50]}  O-O {[%clk 0:02:52]} 10. O-O {[%clk 0:02:50]}  Nc6 {[%clk 0:02:51]} 11. h3 {[%clk 0:02:42]}  Bf5 {[%clk 0:02:49]} 12. Ne5 {[%clk 0:02:40]}  Nxe5 {[%clk 0:02:46]} 13. dxe5 {[%clk 0:02:40]}  Qxd1 {[%clk 0:02:45]} 14. Rfxd1 {[%clk 0:02:40]}  Ne4 {[%clk 0:02:46]} 15. Nd5 {[%clk 0:02:35]}  e6 {[%clk 0:02:28]} 16. Ne7+ {[%clk 0:02:23]}  Kh8 {[%clk 0:02:27]} 17. g4 {[%clk 0:02:23]}  Rfe8 {[%clk 0:02:26]} 18. gxf5 {[%clk 0:02:24]}  Rxe7 {[%clk 0:02:25]} 19. f6 {[%clk 0:02:24]}  Nxf6 {[%clk 0:02:24]} 20. exf6 {[%clk 0:02:24]}  Bxf6 {[%clk 0:02:25]} 21. Bd4 {[%clk 0:02:22]}  Bxd4 {[%clk 0:02:22]} 22. Rxd4 {[%clk 0:02:23]}  Rc8 {[%clk 0:02:21]} 23. Rad1 {[%clk 0:02:21]}  Kg7 {[%clk 0:02:20]} 24. Bb3 {[%clk 0:02:20]}  Rec7 {[%clk 0:02:19]} 25. Rd7 {[%clk 0:02:17]}  b6 {[%clk 0:02:15]} 26. Bxe6 {[%clk 0:02:16]}  Rxd7 {[%clk 0:02:00]} 27. Rxd7 {[%clk 0:02:15]}  Rc1+ {[%clk 0:01:59]} 28. Kg2 {[%clk 0:02:15]}  Rc2 {[%clk 0:01:58]} 29. Rxf7+ {[%clk 0:02:14]}  Kh6 {[%clk 0:01:57]} 30. Rxa7 {[%clk 0:02:11]}  Rxb2 {[%clk 0:01:56]} 31. Bg8 {[%clk 0:02:11]}  Kg5 {[%clk 0:01:52]} 32. Rxh7 {[%clk 0:02:11]}  b5 {[%clk 0:01:40]} 33. Rb7 {[%clk 0:02:08]}  b4 {[%clk 0:01:40]} 34. Bb3 {[%clk 0:02:07]}  Rb1 {[%clk 0:01:25]} 35. Rxb4 {[%clk 0:02:06]}  Ra1 {[%clk 0:01:25]} 36. Rb6 {[%clk 0:02:02]}  Rc1 {[%clk 0:01:21]} 37. Bf7 {[%clk 0:02:01]}  Rc2 {[%clk 0:01:14]} 38. Rxg6+ {[%clk 0:01:57]}  Kf5 {[%clk 0:01:14]} 39. Rb6 {[%clk 0:01:54]}  Rc7 {[%clk 0:01:10]} 40. Bb3 {[%clk 0:01:52]}  Kf4 {[%clk 0:01:10]} 41. Rb4+ {[%clk 0:01:51]}  Kf5 {[%clk 0:01:08]} 42. a4 {[%clk 0:01:48]}  Rg7+ {[%clk 0:01:04]} 43. Kf3 {[%clk 0:01:48]}  Ra7 {[%clk 0:01:02]} 44. Rb5+ {[%clk 0:01:47]}  Kf6 {[%clk 0:01:01]} 45. a5 {[%clk 0:01:46]}  Ke7 {[%clk 0:01:00]} 46. Bc4 {[%clk 0:01:41]}  Rc7 {[%clk 0:00:59]} 47. Bd3 {[%clk 0:01:36]}  Rc3 {[%clk 0:00:58]} 48. Ke4 {[%clk 0:01:35]}  Ra3 {[%clk 0:00:57]} 49. h4 {[%clk 0:01:34]}  Ra4+ {[%clk 0:00:56]} 50. Kd5 {[%clk 0:01:34]}  Rxh4 {[%clk 0:00:56]} 51. a6 {[%clk 0:01:33]}  Rh5+ {[%clk 0:00:53]} 52. Kc6 {[%clk 0:01:32]}  Rh6+ {[%clk 0:00:53]} 53. Kb7 {[%clk 0:01:30]}  Rf6 {[%clk 0:00:34]} 54. a7 {[%clk 0:01:26]}  Rf5 {[%clk 0:00:33]} 55. Rxf5 {[%clk 0:01:25]}  Ke6 {[%clk 0:00:31]} 56. a8=Q {[%clk 0:01:23]}  Kd6 {[%clk 0:00:31]} 57. Qd8+ {[%clk 0:01:23]}  Ke6 {[%clk 0:00:30]} 58. Qd5+ {[%clk 0:01:21]}  Ke7 {[%clk 0:00:30]} 59. Rf7+ {[%clk 0:01:22]} 1-0


[Site "https://www.chess.com"]

[Event "Titled Tuesday Blitz November 29 Late 2022"]
[White "Petrovic, Aleksa"]
[Black "Tarnowska, Aleksandra"]
[WhiteFideId "967629"]
[BlackFideId "1180967"]
[WhiteElo "2224"]
[BlackElo "1776"]
[Result "1-0"]
[Round "02"]
[TimeControl "180+1"]
[Date "2022.11.30"]
[WhiteClock "0:01:29"]
[BlackClock "0:00:09"]

1. d4 {[%clk 0:03:00]}  d5 {[%clk 0:02:59]} 2. c4 {[%clk 0:03:01]}  Nf6 {[%clk 0:02:54]} 3. Nc3 {[%clk 0:02:59]}  c6 {[%clk 0:02:52]} 4. e3 {[%clk 0:02:58]}  Bf5 {[%clk 0:02:51]} 5. cxd5 {[%clk 0:02:57]}  cxd5 {[%clk 0:02:45]} 6. Qb3 {[%clk 0:02:57]}  Qd7 {[%clk 0:02:14]} 7. Nf3 {[%clk 0:02:43]}  Nc6 {[%clk 0:02:00]} 8. Ne5 {[%clk 0:02:37]}  Qc7 {[%clk 0:01:29]} 9. Nxd5 {[%clk 0:02:23]}  Nxd5 {[%clk 0:01:27]} 10. Qxd5 {[%clk 0:02:24]}  e6 {[%clk 0:01:05]} 11. Qb5 {[%clk 0:02:17]}  Bb4+ {[%clk 0:01:01]} 12. Bd2 {[%clk 0:02:14]}  Bxd2+ {[%clk 0:01:00]} 13. Kxd2 {[%clk 0:02:15]}  O-O {[%clk 0:00:55]} 14. Nxc6 {[%clk 0:02:09]}  bxc6 {[%clk 0:00:54]} 15. Rc1 {[%clk 0:02:05]}  Rfc8 {[%clk 0:00:34]} 16. Qc5 {[%clk 0:01:59]}  Rab8 {[%clk 0:00:29]} 17. b3 {[%clk 0:01:55]}  a5 {[%clk 0:00:25]} 18. Bd3 {[%clk 0:01:53]}  Bxd3 {[%clk 0:00:23]} 19. Kxd3 {[%clk 0:01:54]}  a4 {[%clk 0:00:23]} 20. bxa4 {[%clk 0:01:53]}  Rb2 {[%clk 0:00:21]} 21. Rc2 {[%clk 0:01:52]}  Qb7 {[%clk 0:00:20]} 22. Rhc1 {[%clk 0:01:46]}  Qa6+ {[%clk 0:00:18]} 23. Ke4 {[%clk 0:01:45]}  Rxc2 {[%clk 0:00:12]} 24. Qxc2 {[%clk 0:01:39]}  Qa5 {[%clk 0:00:11]} 25. Kd3 {[%clk 0:01:29]}  Qxa4 {[%clk 0:00:09]} 26. Qxa4 {[%clk 0:01:29]} 1-0


[Site "https://www.chess.com"]